bitfinex/quotes_ETHUSD_20241001
["timestamp","ask_amount","ask_price","bid_price","bid_amount"]
[1727791398123,4.99591221,2593.4,2593.3,3.0]
[1727791398322,4.99591221,2593.8,2593.3,3.0]
[1727791398527,4.99591221,2593.4,2593.3,3.0]
[1727791400172,5.41192,2594.3,2593.8,3.0]
[1727791400335,1.5572,2594.3,2593.8,3.85524]
[1727791400527,1.5572,2594.3,2593.9,0.07696325]
[1727791400739,3.85484,2594.2,2593.4,1.5294]
[1727791400925,6.55311221,2594.3,2593.7,3.0]
[1727791400926,10.40771221,2594.3,2593.7,3.0]
[1727791401134,10.40771221,2594.3,2593.3,3.0]
[1727791401135,0.02408251,2594.2,2593.3,3.0]
[1727791401372,0.35211417,2594.2,2593.3,3.0]
[1727791401537,3.85513,2594.0,2593.3,3.0]
[1727791401744,7.71027,2594.0,2593.3,6.85599]
[1727791402125,3.85513,2594.0,2593.3,6.85599]
[1727791402486,3.85513,2594.0,2593.3,3.0]
[1727791402487,4.99591221,2593.9,2593.3,3.0]
[1727791402771,3.85559,2593.7,2593.3,3.0]
[1727791403069,1.54268251,2593.8,2593.1,0.3875]
[1727791403378,3.85557,2593.7,2593.1,35.3875]
[1727791403531,5.39808251,2593.8,2593.1,35.3875]
[1727791403731,3.85552,2593.7,2593.1,35.3875]
[1727791403942,3.85552,2593.7,2593.1,0.3875]
[1727791403943,8.85172221,2593.5,2593.1,0.3875]
[1727791404154,4.99591221,2593.5,2593.1,0.3875]
[1727791404470,3.85609,2593.3,2592.6,3.85707]
[1727791404655,1.42494047,2593.7,2593.1,3.85626]
[1727791404969,1.42494047,2593.7,2592.9,3.85664]
[1727791404970,0.29435405,2593.6,2592.9,3.85664]
[1727791405193,0.29435405,2593.6,2592.7,7.71378]
[1727791405396,0.29435405,2593.6,2592.7,3.85688]
[1727791405611,4.15002405,2593.6,2592.8,3.85681]
[1727791405765,3.85596,2593.4,2592.5,5.8959]
[1727791406097,3.85772,2592.3,2591.5,1.21159645]
[1727791406317,1.64538251,2592.6,2592.0,3.85794]
[1727791406508,1.6213,2592.6,2592.0,3.85794]
[1727791406674,1.6213,2592.6,2591.5,3.85872]
[1727791406675,5.47847,2592.6,2591.9,1.5845]
[1727791406873,4.99591221,2592.2,2591.5,3.85862]
[1727791407280,4.99591221,2591.8,2591.1,5.44376]
[1727791407505,6.59261221,2591.8,2591.1,40.44376]
[1727791408410,6.61669472,2591.8,2591.1,3.85923]
[1727791408574,3.85857,2591.7,2590.9,3.85954]
[1727791408895,3.85857,2591.7,2590.7,36.9087]
[1727791408896,4.99591221,2591.4,2590.7,36.9087]
[1727791409107,1.5967,2591.8,2591.1,3.85926]
[1727791409108,6.59261221,2591.8,2591.1,3.85926]
[1727791409263,6.55841221,2592.2,2591.1,3.85929]
[1727791409460,6.58249472,2592.2,2591.4,3.8589]
[1727791409702,6.55841221,2592.2,2591.6,3.85853]
[1727791409900,6.55841221,2592.2,2591.7,0.0273048]
[1727791410059,3.85792,2592.1,2591.5,3.0]
[1727791410259,3.85792,2592.1,2591.2,3.85914]
[1727791410260,0.02408251,2592.1,2591.3,3.0]
[1727791410464,3.85811,2592.0,2591.3,3.0]
[1727791410663,8.85427221,2591.8,2591.1,3.0]
[1727791410963,8.85427221,2591.8,2590.5,3.8602]
[1727791410964,3.8592,2591.3,2590.5,3.8602]
[1727791411164,4.99591221,2591.0,2590.4,3.8603]
[1727791411416,6.57051221,2591.0,2590.2,3.86057]
[1727791411709,6.57051221,2591.0,2590.0,1.9394]
[1727791411710,3.85974,2590.9,2590.0,5.41278]
[1727791411897,0.02408251,2590.9,2590.3,3.86047]
[1727791412096,0.02408251,2590.9,2590.2,3.86058]
[1727791412465,0.02408251,2590.9,2590.3,3.0]
[1727791412678,0.02408251,2590.9,2590.0,5.41281]
[1727791412679,3.8599,2590.8,2590.0,5.41281]
[1727791412879,4.92916598,2590.9,2589.5,2.09500244]
[1727791412880,4.99591221,2590.6,2589.8,3.86121]
[1727791413191,4.99591221,2590.6,2589.7,2.0138]
[1727791413426,5.43419,2591.0,2589.7,5.87515]
[1727791413719,1.59868251,2591.0,2590.3,3.86046]
[1727791413881,1.59868251,2591.0,2589.8,0.3875]
[1727791414084,1.5746,2591.0,2590.6,3.86008]
[1727791414283,1.5746,2591.0,2590.6,3.0]
[1727791414585,1.59868251,2591.0,2590.5,3.0]
[1727791414786,1.5746,2591.0,2590.5,3.0]
[1727791415092,1.5746,2591.0,2590.2,3.86059]
[1727791415093,4.99591221,2590.7,2590.2,3.86059]
[1727791415423,1.5857,2590.5,2589.9,3.86106]
[1727791415722,1.5857,2590.5,2590.0,6.86087]
[1727791415932,0.02408251,2590.4,2589.8,3.86115]
[1727791416116,4.99591221,2590.3,2589.8,3.86115]
[1727791416360,4.99591221,2590.3,2589.6,3.86151]
[1727791416361,0.02408251,2590.2,2589.6,3.86151]
[1727791416636,8.85649221,2590.3,2589.9,3.86106]
[1727791416637,4.99591221,2590.3,2589.9,3.86106]
[1727791416796,0.02408251,2590.4,2589.3,1.6415]
[1727791416996,1.60978251,2590.5,2589.9,3.86107]
[1727791417224,1.5857,2590.5,2590.0,3.86092]
[1727791419692,1.5609,2591.2,2590.8,3.0]
[1727791419892,1.5609,2591.2,2591.0,6.85948]
[1727791420090,6.54901221,2591.5,2591.2,3.85916]
[1727791420291,0.02408251,2591.4,2591.0,3.0]
[1727791420497,0.02408251,2591.4,2590.7,3.0]
[1727791420498,4.99591221,2591.1,2590.7,3.0]
[1727791420735,4.99591221,2591.1,2590.6,3.0]
[1727791420941,0.02408251,2591.0,2590.5,3.0]
[1727791421141,4.99591221,2590.7,2590.0,3.86088]
[1727791421361,3.88419251,2590.6,2589.8,7.72237]
[1727791421495,0.58410838,2590.6,2589.6,3.86152]
[1727791421835,0.02408251,2590.6,2590.2,3.86062]
[1727791422145,4.99591221,2590.7,2590.4,3.86028]
[1727791422306,1.6596,2590.9,2590.2,3.86055]
[1727791422307,0.02408251,2590.8,2590.2,3.86055]
[1727791422490,0.02408251,2590.8,2590.5,3.86023]
[1727791422689,0.02408251,2590.8,2590.4,3.86031]
[1727791422939,0.02408251,2590.8,2590.4,7.72063]
[1727791423095,1.6018,2591.4,2590.9,3.85957]
[1727791423294,1.6018,2591.4,2590.6,0.55]
[1727791423295,1.62588251,2591.4,2590.6,0.55]
[1727791423537,1.62588251,2591.4,2590.9,3.85963]
[1727791423710,1.62588251,2591.4,2590.9,3.85957]
[1727791424014,1.62588251,2591.4,2590.7,3.85985]
[1727791424168,3.05981298,2591.4,2590.7,7.71969]
[1727791424388,4.99591221,2591.1,2590.4,3.86029]
[1727791424582,1.59578251,2591.0,2590.4,3.86029]
[1727791424758,1.59578251,2591.0,2590.3,3.0]
[1727791424958,1.59578251,2591.0,2590.4,3.86032]
[1727791425152,4.99591221,2590.7,2590.2,3.86062]
[1727791425360,0.02408251,2590.6,2590.4,3.86029]
[1727791425577,0.02408251,2590.9,2590.4,3.86029]
[1727791425955,1.5717,2591.0,2590.4,3.86029]
[1727791425956,0.02408251,2590.8,2590.6,3.86003]
[1727791426290,1.5717,2591.0,2590.4,3.86032]
[1727791426489,0.02408251,2590.9,2590.4,3.86032]
[1727791426792,0.02408251,2590.9,2590.2,3.86057]
[1727791426977,1.06920298,2590.9,2590.4,3.86032]
[1727791427500,1.06920298,2590.9,2590.3,3.86041]
[1727791428459,1.06920298,2590.9,2590.3,3.86053]
[1727791428664,0.02408251,2590.9,2590.4,3.8604]
[1727791428866,0.02408251,2590.9,2590.5,3.8602]
[1727791429107,1.59578251,2591.0,2590.7,3.85987]
[1727791429277,1.6057,2591.3,2590.8,3.85972]
[1727791429479,1.6057,2591.3,2591.1,3.85934]
[1727791429801,0.02408251,2591.2,2590.8,3.85967]
[1727791430021,0.02408251,2591.2,2590.6,3.86005]
[1727791430166,0.02408251,2591.2,2590.6,3.86001]
[1727791430167,4.99591221,2591.1,2590.6,3.86001]
[1727791430366,4.99591221,2591.1,2589.4,38.86176]
[1727791430367,1.6395,2590.9,2590.2,3.86062]
[1727791430610,4.99591221,2590.7,2590.2,3.86062]
[1727791430768,0.02408251,2590.6,2590.2,3.86062]
[1727791431167,0.02408251,2590.6,2590.0,3.0]
[1727791431467,0.02408251,2590.6,2590.4,3.86027]
[1727791431617,0.02408251,2590.6,2590.2,3.8606]
[1727791431805,0.02408251,2590.6,2590.3,3.86055]
[1727791432113,1.54,2590.5,2589.8,3.86125]
[1727791432284,1.56408251,2590.5,2590.3,3.86042]
[1727791432474,1.56408251,2590.5,2590.2,3.86058]
[1727791432669,1.54,2590.5,2590.2,3.86058]
[1727791432921,1.54,2590.5,2590.3,3.86055]
[1727791432922,0.02408251,2590.4,2590.3,3.86055]
[1727791433120,1.54,2590.5,2590.4,3.8604]
[1727791433270,1.54,2590.5,2590.2,3.86058]
[1727791433475,4.90795347,2591.1,2589.7,3.0]
[1727791433476,1.53568251,2590.9,2590.5,3.86013]
[1727791433672,1.53568251,2590.9,2590.3,3.86042]
[1727791433673,1.5116,2590.9,2590.8,3.85981]
[1727791434127,1.5116,2590.9,2590.7,3.85994]
[1727791434931,1.5116,2590.9,2590.7,3.85986]
[1727791435305,1.5116,2590.9,2590.7,3.85985]
[1727791435719,1.53568251,2590.9,2590.5,3.86019]
[1727791435914,1.53568251,2590.9,2590.5,3.86017]
[1727791436128,1.53568251,2590.9,2590.7,3.85993]
[1727791436337,1.5116,2590.9,2590.7,3.85993]
[1727791436906,1.5116,2590.9,2590.5,3.86014]
[1727791437415,1.5116,2590.9,2590.3,3.0]
[1727791437616,1.5116,2590.9,2590.6,3.8601]
[1727791437923,0.02408251,2590.8,2590.3,3.86044]
[1727791438427,4.99591221,2590.7,2590.3,3.86044]
[1727791438741,0.02408251,2590.6,2590.3,3.86048]
[1727791439085,4.99591221,2590.7,2590.4,3.86031]
[1727791439289,0.02408251,2590.8,2590.0,3.0]
[1727791439488,4.99591221,2590.7,2590.5,3.86017]
[1727791439723,1.5116,2590.9,2590.3,3.0]
[1727791439934,1.5116,2590.9,2590.6,3.85997]
[1727791440096,0.02408251,2590.8,2590.5,7.72031]
[1727791440434,0.02408251,2590.8,2590.4,3.86036]
[1727791440959,0.56361676,2590.8,2590.4,7.72068]
[1727791441231,3.86006,2590.7,2590.1,3.86085]
[1727791441447,6.50751221,2590.9,2590.4,3.86039]
[1727791441448,0.02408251,2590.6,2590.4,3.86039]
[1727791441588,6.50751221,2590.9,2590.2,7.72119]
[1727791441589,0.02408251,2590.7,2590.2,7.72119]
[1727791441790,0.02408251,2590.7,2589.6,1.5775]
[1727791441791,0.02408251,2590.7,2590.3,3.8605]
[1727791442029,0.02408251,2590.8,2590.5,3.86017]
[1727791442236,0.02408251,2590.8,2590.3,3.86045]
[1727791442544,0.02408251,2590.8,2589.2,4.23362725]
[1727791442545,4.99591221,2590.5,2589.0,3.86243]
[1727791442808,0.02408251,2590.4,2590.1,3.86081]
[1727791443084,0.02408251,2590.4,2590.2,3.8607]
[1727791443367,0.02408251,2590.4,2589.7,3.86142]
[1727791443368,0.02408251,2590.3,2589.7,3.86135]
[1727791443572,3.86033,2590.5,2589.9,3.86107]
[1727791443776,0.02408251,2590.4,2590.0,3.86098]
[1727791444009,0.02408251,2590.4,2589.4,3.86186]
[1727791444010,4.99591221,2590.1,2589.4,3.86186]
[1727791444133,0.48990915,2590.6,2589.4,3.86186]
[1727791444134,4.47638473,2589.8,2589.4,3.86186]
[1727791444335,4.47638473,2589.8,2588.5,0.3875]
[1727791444336,4.47638473,2589.5,2588.8,3.86276]
[1727791444534,0.86024023,2589.8,2588.5,1.21159645]
[1727791444535,4.47638473,2589.1,2588.5,1.21159645]
[1727791444848,4.47638473,2588.8,2588.2,8.53500096]
[1727791445066,4.47638473,2588.5,2588.2,3.86359]
[1727791445246,4.47638473,2588.5,2588.4,3.86339]
[1727791445573,0.02408251,2589.1,2588.6,3.86299]
[1727791445732,3.86166,2589.6,2588.8,3.86274]
[1727791445937,0.41024851,2589.5,2588.9,3.86254]
[1727791446148,0.41024851,2589.5,2589.0,3.86249]
[1727791446468,0.02408251,2589.5,2588.9,3.86252]
[1727791446694,0.02408251,2589.5,2589.1,3.86225]
[1727791446900,3.8616,2589.6,2588.7,3.8629]
[1727791447195,5.81836756,2589.8,2589.1,3.86223]
[1727791447196,0.02408251,2589.5,2589.1,3.86223]
[1727791447405,1.62358251,2589.7,2589.1,3.86223]
[1727791447699,1.62358251,2589.7,2588.4,3.86328]
[1727791447700,1.5995,2589.7,2589.4,3.86189]
[1727791447864,1.5995,2589.7,2589.3,3.862]
[1727791448061,0.02408251,2590.1,2589.6,3.8616]
[1727791448392,1.5721,2590.0,2589.7,3.86144]
[1727791448696,1.5721,2590.0,2589.2,3.86214]
[1727791448697,1.5721,2590.0,2589.9,3.86115]
[1727791448853,1.552,2590.3,2589.7,0.55]
[1727791449051,1.552,2590.3,2589.7,3.86136]
[1727791449253,1.552,2590.3,2589.6,1.5087]
[1727791449254,1.552,2590.3,2590.0,3.86099]
[1727791449465,1.552,2590.3,2589.6,1.5087]
[1727791449466,1.6358,2590.6,2590.1,3.86082]
[1727791449700,1.6358,2590.6,2589.6,1.5087]
[1727791449701,1.6358,2590.6,2590.3,3.86054]
[1727791449907,1.6358,2590.6,2590.2,3.86069]
[1727791450081,1.6358,2590.6,2590.2,0.02844572]
[1727791450297,1.6358,2590.6,2590.3,3.86051]
[1727791450496,1.6358,2590.6,2590.3,7.72095]
[1727791451024,1.5966,2590.8,2590.5,3.86025]
[1727791451313,1.5966,2590.8,2589.8,3.0]
[1727791451314,1.5966,2590.8,2590.3,3.86046]
[1727791451525,1.5966,2590.8,2590.4,3.86039]
[1727791451816,4.20797074,2590.7,2590.1,3.86073]
[1727791452016,3.86026,2590.5,2589.8,6.86127]
[1727791452227,6.60260984,2590.3,2589.2,2.81093981]
[1727791452374,3.86108,2590.0,2589.3,3.86197]
[1727791452580,3.88525251,2589.9,2589.3,3.86197]
[1727791452811,3.86145,2589.7,2589.2,0.80773096]
[1727791453117,0.02408251,2589.6,2589.2,3.86215]
[1727791453412,0.02408251,2589.6,2589.0,3.8624]
[1727791453713,0.02408251,2589.6,2589.2,3.86216]
[1727791453883,0.02408251,2589.7,2589.2,3.86216]
[1727791454604,1.6204,2589.8,2589.4,3.86181]
[1727791454805,1.6204,2589.8,2589.1,1.5044]
[1727791454972,1.63448251,2590.2,2589.8,3.86121]
[1727791455172,1.63448251,2590.2,2589.6,3.86154]
[1727791455388,1.6104,2590.2,2589.5,3.55]
[1727791455593,1.63448251,2590.6,2590.0,3.86085]
[1727791455791,1.6104,2590.6,2590.0,3.86085]
[1727791456032,1.6104,2590.6,2590.2,3.86066]
[1727791456405,1.6104,2590.6,2589.8,3.0]
[1727791456593,1.6284,2591.0,2590.3,0.55]
[1727791456926,0.02408251,2591.2,2590.8,3.8597]
[1727791457138,0.02408251,2591.2,2590.7,3.85994]
[1727791457442,0.02408251,2591.2,2590.5,3.0]
[1727791457734,7.71898,2591.1,2590.5,3.0]
[1727791457963,3.85948,2591.1,2590.5,6.86021]
[1727791458122,7.71897,2591.1,2590.5,3.0]
[1727791458324,0.02408251,2591.0,2590.2,3.86062]
[1727791458544,3.85982,2590.8,2590.2,3.86062]
[1727791458700,0.02408251,2590.7,2590.3,3.86052]
[1727791459033,0.02408251,2590.7,2590.0,4.6285]
[1727791459034,0.02408251,2590.8,2590.5,3.86022]
[1727791459239,1.548,2590.9,2590.4,3.86035]
[1727791459443,1.548,2590.9,2590.5,3.86024]
[1727791459946,1.548,2590.9,2590.4,3.86028]
[1727791460695,1.548,2590.9,2590.6,3.8601]
[1727791460901,1.548,2590.9,2590.4,3.86028]
[1727791461101,1.548,2590.9,2590.5,3.86013]
[1727791461448,1.548,2590.9,2590.5,3.86024]
[1727791461667,1.548,2590.9,2590.4,3.86028]
[1727791462016,3.85989,2590.8,2590.2,3.86063]
[1727791462357,2.09116025,2590.9,2590.5,3.86013]
[1727791462517,1.548,2590.9,2590.5,3.86013]
[1727791463118,1.57208251,2590.9,2590.1,3.86073]
[1727791463319,7.72035,2590.6,2590.0,3.0]
[1727791463567,5.40774,2590.9,2590.3,3.86051]
[1727791463764,0.540774,2590.8,2590.3,3.86051]
[1727791463963,1.548,2590.9,2590.0,3.0]
[1727791463964,1.548,2590.9,2590.1,3.86078]
[1727791464120,5.40433,2590.5,2590.0,3.0]
[1727791464469,3.86056,2590.3,2589.7,3.8613]
[1727791464628,1.544,2590.5,2590.0,3.86098]
[1727791464822,1.544,2590.5,2589.8,3.86119]
[1727791465016,3.86065,2590.3,2589.6,3.8615]
[1727791465559,3.88451251,2590.4,2589.9,3.86114]
[1727791465769,3.86074,2590.2,2589.7,3.0]
[1727791465921,3.88489251,2590.2,2589.6,3.8615]
[1727791466116,0.02408251,2590.2,2589.7,3.86142]
[1727791466452,0.02408251,2590.2,2589.3,1.611]
[1727791466453,3.86087,2590.1,2589.4,3.86183]
[1727791466649,0.02408251,2590.2,2589.7,3.86134]
[1727791467334,5.40434,2590.5,2589.9,3.86107]
[1727791467536,5.40434,2590.5,2589.4,6.86181]
[1727791467537,0.31819747,2590.4,2590.2,3.86061]
[1727791467857,1.544,2590.5,2590.3,3.86054]
[1727791468036,5.79136681,2590.8,2590.3,3.86055]
[1727791468371,1.9073643,2590.8,2590.4,3.86039]
[1727791468522,1.9073643,2590.8,2590.4,3.86037]
[1727791469162,1.9073643,2590.8,2590.5,3.91790504]
[1727791469326,1.9073643,2590.8,2590.6,3.85997]
[1727791469327,0.3182643,2590.8,2590.6,3.85997]
[1727791469524,0.3182643,2590.8,2590.6,7.71999]
[1727791469720,0.3182643,2590.8,2590.7,3.85996]
[1727791469922,0.3182643,2590.8,2590.7,10.257345]
[1727791470155,0.02408251,2591.7,2591.4,3.85885]
[1727791470156,1.5256,2591.7,2591.4,3.85885]
[1727791470334,2.76533074,2592.7,2590.8,3.0]
[1727791470335,1.6489,2592.0,2591.0,3.85947]
[1727791470548,1.6489,2592.0,2591.7,3.85847]
[1727791470870,1.6489,2592.0,2591.6,3.85852]
[1727791471056,1.5972,2592.4,2591.7,3.85847]
[1727791471271,0.51360411,2591.8,2591.7,18.54722947]
[1727791471443,1.6612,2593.0,2592.5,3.85716]
[1727791471643,1.6612,2593.0,2591.8,3.55]
[1727791471644,5.54184251,2593.0,2592.2,4.40759]
[1727791471837,1.68528251,2593.0,2592.3,3.85744]
[1727791472037,1.68528251,2593.0,2592.2,0.55]
[1727791472232,1.68528251,2593.0,2592.5,3.85716]
[1727791472233,1.6612,2593.0,2592.5,3.85716]
[1727791474714,1.5263,2593.8,2593.2,3.85611]
[1727791474837,1.5263,2593.8,2593.4,3.85592]
[1727791475129,1.5263,2594.1,2593.6,3.85553]
[1727791475467,1.5263,2594.1,2593.4,3.85591]
[1727791475663,1.5263,2594.1,2593.5,3.85576]
[1727791475872,1.5263,2594.1,2593.4,3.85591]
[1727791476074,0.02408251,2594.0,2593.4,3.85591]
[1727791476374,0.02408251,2593.9,2593.4,3.85579]
[1727791476613,0.02408251,2594.0,2593.5,3.85578]
[1727791476731,2.09090976,2594.1,2593.4,3.85579]
[1727791477342,2.09090976,2594.1,2593.5,3.85578]
[1727791477668,0.59457998,2594.0,2593.4,3.85579]
[1727791477878,3.85622,2593.3,2592.2,1.604]
[1727791478031,0.02408251,2593.2,2592.6,3.85713]
[1727791478226,1.5236,2593.5,2592.6,3.85713]
[1727791478227,0.02408251,2593.4,2592.6,3.85711]
[1727791478427,3.85618,2593.3,2592.6,3.85711]
[1727791478629,0.41210876,2593.2,2592.4,3.8574]
[1727791478854,0.41210876,2593.2,2592.2,5.46166]
[1727791478855,1.5081,2593.0,2592.2,3.85761]
[1727791479041,1.5081,2593.0,2592.4,3.85737]
[1727791479042,0.02408251,2592.9,2592.4,3.85737]
[1727791479243,1.5081,2593.0,2592.5,3.85719]
[1727791479442,1.5081,2593.0,2592.6,3.85705]
[1727791479730,1.5081,2593.0,2592.5,3.85719]
[1727791480157,0.02408251,2592.9,2592.3,3.85747]
[1727791480598,0.02408251,2592.9,2592.1,3.85775]
[1727791480599,3.88087251,2592.9,2592.1,3.85775]
[1727791480892,3.88087251,2592.9,2592.1,3.85784]
[1727791481198,1.5688,2592.7,2591.9,3.85807]
[1727791481401,1.5688,2592.7,2592.1,3.85785]
[1727791481402,0.02408251,2592.6,2592.1,3.85785]
[1727791481793,0.02408251,2592.6,2592.1,7.71555]
[1727791482093,1.59288251,2592.7,2592.1,3.85777]
[1727791482451,5.44891,2592.6,2591.9,3.85814]
[1727791482692,3.85752,2592.4,2591.7,3.85834]
[1727791482852,0.02408251,2592.3,2591.8,6.85828]
[1727791483054,0.02408251,2592.3,2591.8,3.0]
[1727791483694,0.02408251,2592.5,2592.1,3.85786]
[1727791483899,1.61578251,2592.6,2592.1,3.85786]
[1727791484052,1.61578251,2592.6,2591.9,3.85812]
[1727791484251,1.61578251,2592.6,2592.1,3.85785]
[1727791484618,1.5917,2592.6,2592.1,7.71554]
[1727791484760,3.85626,2593.2,2591.8,3.0]
[1727791484761,1.6283,2592.9,2592.2,3.85762]
[1727791484956,3.85602,2593.4,2591.9,1.5048]
[1727791484957,5.4844,2593.3,2592.8,3.85682]
[1727791485255,1.6283,2593.3,2593.1,3.85624]
[1727791485495,1.6283,2593.3,2593.0,3.8565]
[1727791486095,1.6283,2593.3,2592.8,3.85672]
[1727791486796,0.02408251,2593.2,2592.6,3.85704]
[1727791487097,0.02408251,2593.2,2592.7,3.85697]
[1727791487257,0.02408251,2593.2,2592.8,3.85671]
[1727791487595,1.6283,2593.3,2592.9,3.85666]
[1727791488009,1.6283,2593.3,2592.9,3.85664]
[1727791488501,9.2815,2594.0,2593.2,3.85623]
[1727791488705,3.87928251,2593.9,2593.2,0.07711503]
[1727791488880,3.87928251,2593.9,2593.3,3.856]
[1727791488881,0.02408251,2593.9,2593.3,3.856]
[1727791489080,3.8555,2593.7,2593.2,0.0769537]
[1727791489277,0.38795825,2593.7,2593.3,3.85598]
[1727791489468,0.02408251,2593.9,2593.3,3.85598]
[1727791489884,0.02408251,2593.9,2592.8,8.43429]
[1727791490107,1.5712,2594.0,2593.3,3.85609]
[1727791490318,1.5712,2594.0,2593.2,3.0]
[1727791490319,3.85543,2593.8,2593.2,3.0]
[1727791490475,0.02408251,2593.7,2593.2,3.0]
[1727791490795,3.8553,2593.9,2593.3,7.71197]
[1727791490994,3.87928251,2593.9,2593.4,3.85593]
[1727791491204,3.85543,2593.8,2593.2,6.85618]
[1727791491467,4.42433076,2593.9,2593.2,6.85618]
[1727791491468,0.02408251,2593.7,2593.2,6.85618]
[1727791491769,0.02408251,2593.7,2593.2,3.85615]
[1727791492182,5.51445,2593.6,2593.0,3.85641]
[1727791492384,0.02408251,2593.5,2593.0,3.85641]
[1727791492580,0.02408251,2593.5,2592.7,3.0]
[1727791492581,0.96349476,2593.5,2592.5,5.49864]
[1727791492782,5.51445,2593.6,2593.2,3.85622]
[1727791492783,1.6588,2593.6,2593.2,3.85622]
[1727791493013,1.6588,2593.6,2592.5,5.49864]
[1727791493014,1.6588,2593.6,2592.8,3.85675]
[1727791493185,0.02408251,2593.5,2593.0,3.85639]
[1727791493383,0.02408251,2593.5,2593.1,3.85629]
[1727791493588,0.02408251,2593.5,2592.8,3.85673]
[1727791493788,0.57793476,2593.5,2593.1,3.85625]
[1727791494495,0.57793476,2593.5,2593.1,7.71254]
[1727791494676,1.6588,2593.6,2593.4,3.85593]
[1727791494877,1.6588,2593.6,2593.3,3.85604]
[1727791495714,1.6588,2593.6,2593.2,3.85615]
[1727791495904,1.6588,2593.6,2593.2,3.85614]
[1727791497112,1.6588,2593.6,2593.0,3.85644]
[1727791497113,3.85581,2593.5,2593.0,3.85644]
[1727791497314,5.53866251,2593.6,2592.8,3.85675]
[1727791497315,4.81946976,2593.4,2592.8,3.85675]
[1727791497632,4.81946976,2593.4,2592.5,1.6414]
[1727791497633,1.5028,2593.1,2592.5,3.85727]
[1727791497820,1.5028,2593.1,2592.2,5.36578]
[1727791497821,1.52688251,2593.1,2592.7,3.85697]
[1727791497987,1.52688251,2593.1,2592.5,3.85717]
[1727791498316,1.52688251,2593.1,2592.2,1.5081]
[1727791498317,3.85669,2592.9,2592.2,3.85772]
[1727791498516,0.02408251,2592.8,2592.2,3.85772]
[1727791498690,0.02408251,2592.8,2592.3,3.85747]
[1727791498890,0.02408251,2592.8,2592.0,3.85788]
[1727791499129,0.02408251,2592.8,2591.5,3.85868]
[1727791499130,1.5323,2592.7,2591.6,3.85859]
[1727791499335,0.02408251,2592.6,2592.1,3.85778]
[1727791499843,1.5323,2592.7,2591.5,1.5835]
[1727791499844,1.55638251,2592.7,2592.3,3.85754]
[1727791499998,1.5323,2592.7,2592.3,3.85749]
[1727791500199,1.5323,2592.7,2592.4,3.8574]
[1727791500442,1.55638251,2592.7,2591.9,3.85802]
[1727791500644,4.98220984,2592.0,2590.9,1.5848]
[1727791500819,1.5596,2591.5,2591.1,3.85935]
[1727791500997,1.5596,2591.5,2590.8,3.8597]
[1727791501204,1.5596,2591.5,2590.9,3.85964]
[1727791501507,1.5596,2591.5,2590.7,3.85994]
[1727791501508,2.21378098,2591.5,2590.7,3.85994]
[1727791501703,2.21378098,2591.5,2590.6,5.07162645]
[1727791501900,0.02408251,2591.4,2590.6,1.21159645]
[1727791502118,1.5596,2591.5,2591.1,3.85926]
[1727791502310,1.5596,2591.5,2591.3,3.85905]
[1727791502512,1.5596,2591.5,2591.2,0.07376553]
[1727791502513,1.5831,2592.2,2591.7,3.85836]
[1727791502746,0.02408251,2592.1,2591.6,3.8586]
[1727791502948,0.02408251,2592.1,2591.5,3.85876]
[1727791503156,0.02408251,2592.1,2591.4,3.85888]
[1727791503318,10.0,2592.0,2591.5,3.85864]
[1727791503911,10.0,2592.0,2591.3,3.859]
[1727791504158,10.0,2592.0,2591.5,3.85871]
[1727791504518,10.0,2592.0,2591.5,3.85867]
[1727791505233,10.0,2592.0,2591.6,3.85859]
[1727791505469,10.0,2592.0,2591.6,3.8586]
[1727791505877,10.0,2592.0,2591.4,3.85882]
[1727791506161,10.0,2592.0,2591.5,3.85865]
[1727791506372,10.0,2592.0,2591.4,3.85882]
[1727791506526,10.0,2592.0,2591.3,3.85905]
[1727791506732,11.28607321,2592.0,2591.2,7.71826]
[1727791506935,11.28607321,2592.0,2591.2,3.8591]
[1727791507373,1.5198,2591.9,2591.3,3.85895]
[1727791507559,1.5198,2591.9,2591.0,3.85941]
[1727791507560,0.02408251,2591.8,2591.0,3.85941]
[1727791507758,0.02408251,2591.8,2591.2,3.85912]
[1727791508280,1.5198,2591.9,2590.8,3.0]
[1727791508480,1.5198,2591.9,2591.5,3.85866]
[1727791508719,1.5198,2591.9,2591.5,7.71732]
[1727791508831,10.0,2592.0,2591.9,3.85817]
[1727791509229,10.0,2592.0,2591.8,3.85823]
[1727791509464,10.0,2592.0,2591.9,3.85817]
[1727791510341,10.0,2592.0,2591.8,3.85823]
[1727791510742,10.0,2592.0,2591.9,3.85817]
[1727791511229,10.0,2592.0,2591.0,3.85949]
[1727791511230,1.6657,2591.9,2591.1,3.85928]
[1727791511437,1.68978251,2591.9,2591.0,5.46347]
[1727791511795,1.68978251,2591.9,2591.4,3.8589]
[1727791512249,1.68978251,2591.9,2591.0,1.604]
[1727791512250,1.6657,2591.9,2591.0,1.604]
[1727791512439,10.0,2592.0,2591.9,3.85817]
[1727791512638,10.0,2592.0,2591.8,3.8583]
[1727791512892,0.02408251,2591.9,2591.4,6.85888]
[1727791513040,0.02408251,2591.9,2591.2,3.85912]
[1727791513041,1.5324,2591.8,2591.2,3.85912]
[1727791513242,0.02408251,2591.7,2591.0,7.71889]
[1727791513469,0.02408251,2591.7,2590.9,3.85953]
[1727791513677,3.88256251,2591.7,2591.0,3.8595]
[1727791513844,3.88256251,2591.7,2591.1,3.85931]
[1727791513845,0.02408251,2591.7,2591.1,3.85931]
[1727791514043,0.02408251,2591.7,2590.6,3.86004]
[1727791514250,0.02408251,2591.7,2591.1,3.85927]
[1727791514658,0.02408251,2591.7,2591.2,3.85919]
[1727791514978,0.02408251,2591.7,2591.1,3.85927]